bitfinex/quotes_SOLUSD_20250625
["timestamp","ask_amount","ask_price","bid_price","bid_amount"]
[1750861941551,68.75434079,145.2,145.11,10.84021239]
[1750861941755,18.64964886,145.19,145.13,10.84021239]
[1750861942049,43.72731755,145.2,145.15,10.84021239]
[1750861942362,10.84021239,145.19,145.14,17.72994426]
[1750861942560,10.84021239,145.16,145.1,6.89179875]
[1750861942766,32.88710516,145.2,145.14,10.84021239]
[1750861942938,18.64964886,145.19,145.13,10.84021239]
[1750861943140,43.72731755,145.2,145.15,10.84021239]
[1750861943334,36.84021239,145.21,145.16,10.84021239]
[1750861944145,32.88665081,145.21,145.16,10.84021239]
[1750861944376,10.84021239,145.25,145.2,10.84021239]
[1750861944583,10.84021239,145.25,145.16,7.7866]
[1750861944584,26.34408524,145.27,145.22,10.84021239]
[1750861944950,15.50387285,145.27,145.22,10.84021239]
[1750861945169,26.0,145.26,145.22,10.84021239]
[1750861945389,36.84021239,145.26,145.22,10.84021239]
[1750861945547,10.84021239,145.26,145.21,10.84021239]
[1750861945885,32.88451534,145.26,145.2,6.88685939]
[1750861946178,10.84021239,145.25,145.21,10.84021239]
[1750861947056,17.72495428,145.25,145.21,10.84021239]
[1750861948070,10.84021239,145.24,145.2,17.72707178]
[1750861948275,17.72495428,145.25,145.21,10.84021239]
[1750861949168,10.84021239,145.25,145.21,17.72671927]
[1750861950172,32.8843803,145.26,145.21,17.72671927]
[1750861950476,8.62,145.27,145.23,10.84021239]
[1750861950649,8.62,145.27,145.25,10.84021239]
[1750861950855,8.62,145.27,145.21,6.88650688]
[1750861951061,8.62,145.27,145.24,10.84021239]
[1750861951383,19.46021239,145.27,145.23,10.84021239]
[1750861951679,19.46021239,145.27,145.22,10.84021239]
[1750861951881,10.84021239,145.24,145.2,17.72709861]
[1750861952085,10.84021239,145.26,145.22,17.72631623]
[1750861952661,26.34405292,145.27,145.22,17.72631623]
[1750861954502,10.84021239,145.26,145.22,17.72631623]
[1750861955059,10.84021239,145.25,145.22,6.88610384]
[1750861955284,17.72447644,145.26,145.22,17.72631623]
[1750861955583,6.88426405,145.26,145.22,6.88610384]
[1750861955780,6.88426405,145.26,145.21,17.72660106]
[1750861955971,6.88426405,145.26,145.21,6.88638867]
[1750861955972,10.84021239,145.25,145.21,6.88638867]
[1750861956677,10.84021239,145.24,145.2,17.72705185]
[1750861957460,6.88472093,145.25,145.2,17.72705185]
[1750861957681,10.84021239,145.24,145.2,17.72705185]
[1750861958186,6.88472093,145.25,145.2,17.72705185]
[1750861958479,10.84021239,145.24,145.2,17.72705185]
[1750861958989,10.84021239,145.25,145.2,17.72705185]
[1750861959187,10.84021239,145.25,145.21,10.84021239]
[1750861959798,26.0,145.26,145.22,10.84021239]
[1750861959969,26.0,145.26,145.23,10.84021239]
[1750861960293,147.8,145.26,145.24,17.72536799]
[1750861960459,147.8,145.26,145.24,10.84021239]
[1750861961881,147.8,145.26,145.25,10.84021239]
[1750861962206,165.52206792,145.31,145.26,6.88420762]
[1750861962493,147.8,145.3,145.26,17.72442001]
[1750861963066,158.64021239,145.3,145.26,17.72442001]
[1750861963383,26.0,145.31,145.28,10.84021239]
[1750861963702,26.0,145.31,145.26,6.88420762]
[1750861963882,8.62,145.33,145.29,10.84021239]
[1750861964090,10.84021239,145.34,145.3,10.84021239]
[1750861964478,6.87947165,145.36,145.3,10.84021239]
[1750861964704,10.84021239,145.34,145.3,10.84021239]
[1750861964904,26.0,145.33,145.3,10.84021239]
[1750861965505,6.88095984,145.33,145.28,6.88311259]
[1750861965711,6.88095984,145.33,145.25,10.84021239]
[1750861965712,10.84021239,145.29,145.25,10.84021239]
[1750861966068,10.84021239,145.27,145.23,10.84021239]
[1750861966300,10.84021239,145.27,145.22,14.97642533]
[1750861966595,10.84021239,145.27,145.23,10.84021239]
[1750861966796,10.84021239,145.25,145.22,8.0904]
[1750861967497,17.72498055,145.25,145.22,8.0904]
[1750861967692,10.84021239,145.25,145.22,8.0904]
[1750861968499,6.88441489,145.26,145.22,8.0904]
[1750861968800,10.84021239,145.25,145.22,8.0904]
[1750861969391,6.88441489,145.26,145.2,17.72714873]
[1750861969688,40.56,145.31,145.25,10.84021239]
[1750861969878,8.5,145.31,145.28,10.84021239]
[1750861970291,36.84021239,145.34,145.26,6.4896]
[1750861970494,10.84021239,145.33,145.29,10.84021239]
[1750861970802,10.84021239,145.34,145.3,10.84021239]
[1750861971603,17.72067414,145.34,145.29,17.72265542]
[1750861972103,10.84021239,145.33,145.29,10.84021239]
[1750861972304,10.84021239,145.31,145.26,17.32981239]
[1750861972501,10.84021239,145.3,145.26,17.32981239]
[1750861972881,10.84021239,145.29,145.25,12.46261239]
[1750861973205,10.84021239,145.28,145.24,10.84021239]
[1750861973382,10.84021239,145.29,145.25,10.84021239]
[1750861973585,10.84021239,145.29,145.23,24.09970391]
[1750861973586,10.84021239,145.29,145.24,10.84021239]
[1750861974207,10.84021239,145.29,145.25,10.84021239]
[1750861974584,10.84021239,145.31,145.27,10.84021239]
[1750861974808,17.72177659,145.32,145.27,10.84021239]
[1750861974986,10.84021239,145.32,145.28,10.84021239]
[1750861975484,10.84021239,145.31,145.27,10.84021239]
[1750861975806,10.84021239,145.31,145.27,17.72354416]
[1750861977904,154.6810179,145.33,145.27,17.72354416]
[1750861978205,154.6810179,145.33,145.27,6.88333177]
[1750861978410,10.84021239,145.32,145.27,17.72354416]
[1750861978584,10.84021239,145.3,145.27,6.88333177]
[1750861978787,10.84021239,145.29,145.26,6.88409128]
[1750861979310,10.84021239,145.28,145.25,6.88449967]
[1750861979903,10.84021239,145.27,145.23,17.72584208]
[1750861980420,10.84021239,145.27,145.23,6.88562969]
[1750861980719,10.84021239,145.24,145.21,1.5034]
[1750861981085,154.68335643,145.28,145.21,8.38976397]
[1750861981285,154.68335643,145.28,145.22,10.84021239]
[1750861981494,147.8,145.28,145.25,10.84021239]
[1750861981698,10.84021239,145.3,145.26,10.84021239]
[1750861981903,10.84021239,145.29,145.25,10.84021239]
[1750861982098,10.84021239,145.3,145.26,10.84021239]
[1750861982286,10.84021239,145.3,145.21,60.0390994]
[1750861982486,42.80021239,145.32,145.27,10.84021239]
[1750861982725,26.0,145.3,145.27,10.84021239]
[1750861982899,18.64964886,145.32,145.27,10.84021239]
[1750861983208,18.64964886,145.32,145.25,6.4758]
[1750861983209,26.0,145.32,145.29,17.72299854]
[1750861983714,36.84021239,145.32,145.28,17.72329806]
[1750861984988,26.0,145.32,145.29,10.84021239]
[1750861986017,26.0,145.32,145.3,6.88231245]
[1750861986226,26.0,145.32,145.29,6.88259031]
[1750861986918,36.84021239,145.32,145.28,6.88322424]
[1750861987121,10.84021239,145.31,145.28,6.88322424]
[1750861987334,26.0,145.32,145.28,17.72343663]
[1750861987626,18.64964886,145.36,145.31,10.84021239]
[1750861987828,29.48986125,145.36,145.31,10.84021239]
[1750861987998,10.84021239,145.35,145.31,17.72194198]
[1750861988529,18.64964886,145.35,145.31,6.88172959]
[1750861988732,29.48986125,145.35,145.31,6.88172959]
[1750861988910,29.48986125,145.35,145.28,17.20814977]
[1750861988911,10.84021239,145.33,145.28,17.7234723]
[1750861989296,10.84021239,145.32,145.28,17.7234723]
[1750861989496,10.84021239,145.34,145.3,10.84021239]
[1750861990199,10.84021239,145.33,145.29,6.88238637]
[1750861990404,18.64964886,145.34,145.29,6.88238637]
[1750861990629,10.84021239,145.33,145.29,17.72259876]
[1750861991229,10.84021239,145.34,145.29,17.72259876]
[1750861991432,147.8,145.35,145.32,10.84021239]
[1750861991730,8.5,145.4,145.34,10.84021239]
[1750861991909,8.5,145.4,145.32,17.14751239]
[1750861991910,36.84021239,145.37,145.32,17.14751239]
[1750861992113,10.84021239,145.35,145.31,10.84021239]
[1750861992424,26.0,145.38,145.3,10.84021239]
[1750861992425,18.64964886,145.37,145.3,10.84021239]
[1750861992607,10.84021239,145.36,145.32,10.84021239]
[1750861992801,26.0,145.36,145.32,10.84021239]
[1750861992999,10.84021239,145.35,145.31,17.72183647]
[1750861993406,36.84021239,145.36,145.32,10.84021239]
[1750861993624,26.0,145.36,145.33,10.84021239]
[1750861993809,36.84021239,145.36,145.32,10.84021239]
[1750861994222,36.84021239,145.39,145.35,6.87994496]
[1750861994410,10.84021239,145.39,145.35,6.87994496]
[1750861994601,10.84021239,145.39,145.31,17.20459706]
[1750861994602,10.84021239,145.37,145.32,17.72157765]
[1750861995910,10.84021239,145.36,145.32,17.72157765]
[1750861996114,6.87904069,145.37,145.32,17.72157765]
[1750861996115,10.84021239,145.37,145.32,17.72157765]
[1750861996317,10.84021239,145.37,145.33,10.84021239]
[1750861997038,10.84021239,145.37,145.33,17.72093059]
[1750861999639,10.84021239,145.35,145.3,26.0]
[1750861999823,10.84021239,145.35,145.31,10.84021239]
[1750862000140,10.84021239,145.36,145.32,10.84021239]
[1750862000338,10.84021239,145.36,145.31,17.72205121]
[1750862000637,10.84021239,145.32,145.29,6.3073]
[1750862000847,10.84021239,145.3,145.27,1.5908]
[1750862001212,6.88137609,145.32,145.27,1.5908]
[1750862001433,10.84021239,145.3,145.27,1.5908]
[1750862001611,6.88137609,145.32,145.27,1.5908]
[1750862001811,10.84021239,145.3,145.27,1.5908]
[1750862002765,32.88121808,145.33,145.28,10.84021239]
[1750862003046,17.72082503,145.34,145.29,10.84021239]
[1750862003212,6.88061264,145.34,145.29,10.84021239]
[1750862003422,10.84021239,145.33,145.29,10.84021239]
[1750862003923,36.84021239,145.35,145.3,10.84021239]
[1750862004151,147.8,145.36,145.32,10.84021239]
[1750862004437,158.64021239,145.36,145.32,10.84021239]
[1750862005051,147.8,145.36,145.33,10.84021239]
[1750862005219,147.8,145.36,145.32,24.19742687]
[1750862005220,10.84021239,145.36,145.32,24.19742687]
[1750862005422,10.84021239,145.36,145.32,6.4761]
[1750862005616,10.84021239,145.34,145.28,13.02915991]
[1750862005816,10.84021239,145.34,145.3,10.84021239]
[1750862006126,10.84021239,145.35,145.31,10.84021239]
[1750862006750,10.84021239,145.35,145.3,10.84021239]
[1750862007088,147.8,145.36,145.3,10.84021239]
[1750862007089,10.84021239,145.34,145.3,10.84021239]
[1750862007523,10.84021239,145.35,145.31,10.84021239]
[1750862007923,158.64021239,145.36,145.31,10.84021239]
[1750862008148,158.64021239,145.36,145.32,10.84021239]
[1750862008446,26.0,145.37,145.32,10.84021239]
[1750862008657,26.0,145.37,145.3,6.88214597]
[1750862008658,36.84021239,145.37,145.33,10.84021239]
[1750862009154,36.84021239,145.37,145.32,10.84021239]
[1750862009553,36.84021239,145.37,145.33,6.88089176]
[1750862009735,43.71924914,145.37,145.33,6.88089176]
[1750862009933,10.84021239,145.37,145.33,6.88089176]
[1750862010131,10.84021239,145.37,145.33,17.72110415]
[1750862010442,26.0,145.39,145.33,17.72110415]
[1750862010655,10.84021239,145.37,145.33,17.72110415]
[1750862011467,32.87823907,145.39,145.33,17.72110415]
[1750862011763,10.84021239,145.37,145.33,17.72110415]
[1750862012664,10.84021239,145.36,145.31,6.88158161]
[1750862012972,10.84021239,145.32,145.29,6.88278615]
[1750862013268,10.84021239,145.33,145.29,17.72299854]
[1750862013437,10.84021239,145.33,145.29,6.88278615]
[1750862013857,10.84021239,145.31,145.28,6.1459]
[1750862014239,26.0,145.34,145.27,1.5908]
[1750862014240,10.84021239,145.3,145.27,1.5908]
[1750862014449,10.84021239,145.29,145.27,1.5908]
[1750862014966,10.84021239,145.29,145.27,8.47446063]
[1750862015269,10.84021239,145.28,145.23,1.5558]
[1750862015471,10.84021239,145.25,145.23,1.5558]
[1750862015645,6.88286847,145.29,145.23,1.5558]
[1750862015845,10.84021239,145.26,145.23,1.5558]
[1750862016172,10.84021239,145.26,145.23,8.44139246]
[1750862016479,10.84021239,145.24,145.21,6.5179]
[1750862016686,10.84021239,145.22,145.19,1.5559]
[1750862016844,10.84021239,145.21,145.18,6.0344]
[1750862017051,10.84021239,145.2,145.16,6.8887848]
[1750862018342,26.0,145.24,145.19,10.84021239]
[1750862018545,10.84021239,145.26,145.22,10.84021239]
[1750862018956,10.84021239,145.26,145.21,10.84021239]
[1750862019544,10.84021239,145.26,145.22,10.84021239]
[1750862019750,36.84021239,145.27,145.22,10.84021239]
[1750862019953,36.84021239,145.27,145.18,18.64964886]
[1750862020159,36.84021239,145.27,145.24,6.8851556]
[1750862020356,18.64964886,145.28,145.24,17.72536799]
[1750862020357,10.84021239,145.28,145.24,17.72536799]
[1750862020939,26.0,145.28,145.24,6.8851556]
[1750862021144,29.48986125,145.3,145.26,10.84021239]
[1750862021372,29.48986125,145.3,145.24,24.09804461]
[1750862021373,10.84021239,145.3,145.24,24.09804461]
[1750862021554,10.84021239,145.3,145.26,10.84021239]
[1750862021752,10.84021239,145.3,145.24,24.09804461]
[1750862021969,10.84021239,145.3,145.25,10.84021239]
[1750862022351,10.84021239,145.29,145.26,6.88420762]
[1750862022771,10.84021239,145.28,145.26,6.88420762]
[1750862023074,10.84021239,145.27,145.25,6.88457811]
[1750862023270,10.84021239,145.28,145.25,6.88457811]
[1750862025045,10.84021239,145.23,145.21,6.88642828]
[1750862025874,10.84021239,145.23,145.2,6.88705234]
[1750862026251,1.588,145.33,145.2,60.94489558]
[1750862026446,10.84021239,145.31,145.23,26.0]
[1750862026648,18.64964886,145.31,145.23,26.0]
[1750862026864,10.84021239,145.29,145.25,10.84021239]
[1750862027745,10.84021239,145.29,145.26,6.88420762]
[1750862028061,10.84021239,145.28,145.25,6.88452023]
[1750862028874,10.84021239,145.29,145.25,6.88452023]
[1750862029080,10.84021239,145.3,145.26,10.84021239]
[1750862029372,10.84021239,145.31,145.27,10.84021239]
[1750862029962,10.84021239,145.31,145.28,6.88325991]
[1750862031872,10.84021239,145.31,145.27,17.72394612]
[1750862032266,10.84021239,145.31,145.27,34.93328046]
[1750862032463,8.26,145.35,145.28,10.84021239]
[1750862032784,10.84021239,145.33,145.29,10.84021239]
[1750862033361,8.26,145.35,145.27,24.09306807]
[1750862033362,10.84021239,145.32,145.28,10.84021239]
[1750862033566,10.84021239,145.33,145.29,10.84021239]
[1750862034061,10.84021239,145.32,145.3,6.88231245]
[1750862034260,10.84021239,145.33,145.3,6.88231245]
[1750862034569,10.84021239,145.34,145.3,17.72252484]
[1750862035293,10.84021239,145.34,145.3,34.92830598]
[1750862035463,10.84021239,145.34,145.3,24.08809359]
[1750862035785,10.84021239,145.34,145.3,6.88231245]
[1750862036167,10.84021239,145.33,145.3,6.88231245]
[1750862036675,8.26,145.35,145.3,6.88231245]
[1750862036875,10.84021239,145.33,145.3,6.88231245]
[1750862037386,8.26,145.35,145.3,6.88231245]
[1750862037387,10.84021239,145.34,145.3,17.72252484]
[1750862037767,10.84021239,145.34,145.3,6.88231245]
[1750862037968,10.84021239,145.33,145.3,6.88231245]
[1750862038470,10.84021239,145.32,145.3,6.88231245]
[1750862039565,10.84021239,145.32,145.29,6.88278615]
[1750862040390,10.84021239,145.33,145.29,17.72299854]
[1750862040599,10.84021239,145.3,145.25,12.47251239]
[1750862041608,10.84021239,145.28,145.24,6.8851556]
[1750862041773,10.84021239,145.28,145.24,17.72536799]
[1750862042991,25.53168406,145.31,145.26,10.84021239]
[1750862042992,10.84021239,145.3,145.26,10.84021239]
[1750862043186,10.84021239,145.31,145.27,10.84021239]
[1750862043687,173.8,145.32,145.27,17.72394612]
[1750862043895,10.84021239,145.31,145.27,17.72394612]
[1750862044078,10.84021239,145.29,145.24,6.8851556]
[1750862044395,18.64964886,145.31,145.24,6.8851556]
[1750862044628,10.84021239,145.28,145.24,6.8851556]
[1750862044775,18.64964886,145.31,145.24,6.8851556]
[1750862044975,10.84021239,145.28,145.24,6.8851556]
[1750862045883,10.84021239,145.28,145.24,17.72536799]
[1750862046587,10.84021239,145.28,145.24,6.8851556]
[1750862046890,25.5316764,145.31,145.25,10.84021239]
[1750862047198,18.64964886,145.31,145.25,10.84021239]
[1750862047404,10.84021239,145.29,145.25,10.84021239]
[1750862048082,10.84021239,145.29,145.26,6.88420762]
[1750862048496,173.8,145.32,145.26,17.72442001]
[1750862048796,173.8,145.32,145.27,10.84021239]
[1750862049002,184.64021239,145.32,145.27,10.84021239]
[1750862049202,147.8,145.32,145.29,10.84021239]
[1750862049501,10.84021239,145.32,145.27,12.42641239]
[1750862049988,32.8804707,145.34,145.27,12.42641239]
[1750862050195,10.84021239,145.32,145.28,6.88325991]
[1750862050505,10.84021239,145.32,145.28,17.7234723]
[1750862050692,26.0,145.34,145.28,17.7234723]
[1750862050897,10.84021239,145.34,145.3,10.84021239]
[1750862051098,162.93949516,145.36,145.3,10.84021239]
[1750862051300,10.84021239,145.33,145.28,24.09140968]
[1750862051602,18.64964886,145.35,145.28,17.7234723]
[1750862051809,10.84021239,145.32,145.28,17.7234723]
[1750862052137,32.88041033,145.35,145.28,17.7234723]
[1750862052276,10.84021239,145.32,145.28,17.7234723]
[1750862052912,10.84021239,145.33,145.29,10.84021239]
[1750862053277,10.84021239,145.33,145.3,6.88231245]
[1750862053481,26.0,145.35,145.3,6.88231245]
[1750862053680,26.0,145.35,145.3,17.72252484]
[1750862053875,10.84021239,145.34,145.3,17.72252484]
[1750862054094,10.84021239,145.34,145.3,6.88231245]
[1750862054280,10.84021239,145.33,145.3,6.88231245]
[1750862054487,10.84021239,145.34,145.3,6.88231245]
[1750862054682,10.84021239,145.34,145.3,17.72252484]
[1750862055115,162.93956638,145.36,145.3,17.72252484]
[1750862055116,156.06,145.36,145.31,10.84021239]
[1750862055277,10.84021239,145.35,145.31,10.84021239]
[1750862055604,156.06,145.36,145.32,24.08477841]
[1750862055792,6.87652204,145.43,145.35,10.84021239]
[1750862056002,13.31906608,145.43,145.38,10.84021239]
[1750862056225,26.0,145.41,145.35,6.1112]
[1750862056524,10.84021239,145.43,145.39,10.84021239]
[1750862056690,36.84021239,145.43,145.39,10.84021239]
[1750862057196,10.84021239,145.41,145.35,6.1112]
[1750862057404,10.84021239,145.42,145.38,17.71873763]
[1750862057816,32.87622536,145.43,145.38,17.71873763]
[1750862057817,10.84021239,145.41,145.38,6.87852524]
[1750862058109,10.84021239,145.41,145.37,17.71906528]
[1750862058317,6.87622536,145.43,145.37,17.71906528]
[1750862058491,10.84021239,145.41,145.37,17.71906528]
[1750862058993,10.84021239,145.42,145.38,10.84021239]
[1750862059388,32.87622536,145.43,145.38,17.71868924]
[1750862059803,10.84021239,145.41,145.38,6.87847685]
[1750862060109,32.87622536,145.43,145.38,6.87847685]
[1750862060488,10.84021239,145.42,145.38,10.84021239]
[1750862061423,10.84021239,145.4,145.36,17.71968404]
[1750862061592,32.87623782,145.43,145.36,17.71968404]
[1750862061799,10.84021239,145.41,145.37,10.84021239]
[1750862062496,10.84021239,145.41,145.38,6.87852524]
[1750862062820,26.0,145.43,145.38,6.87852524]
[1750862063014,10.84021239,145.41,145.38,6.87852524]
[1750862063701,10.84021239,145.41,145.37,17.71907129]
[1750862063906,36.84021239,145.43,145.39,10.84021239]
[1750862064608,36.84021239,145.43,145.4,6.87757909]
[1750862064805,25.52250109,145.5,145.41,1.5334]
[1750862064998,2.47323613,145.49,145.43,10.84021239]
[1750862065193,29.48986125,145.48,145.41,7.6497]
[1750862065428,10.84021239,145.47,145.43,10.84021239]
[1750862065598,18.64964886,145.49,145.44,10.84021239]
[1750862065599,10.84021239,145.48,145.44,10.84021239]
[1750862065927,18.64964886,145.49,145.44,17.71556702]
[1750862066128,10.84021239,145.48,145.44,17.71556702]
[1750862066804,10.84021239,145.46,145.42,6.8766332]
[1750862067013,18.64964886,145.49,145.44,10.84021239]
[1750862067321,58.47181552,145.52,145.48,10.84021239]
[1750862067322,10.84021239,145.52,145.48,10.84021239]
[1750862067528,10.84021239,145.52,145.43,26.68761603]
[1750862067529,10.84021239,145.52,145.47,10.84021239]
[1750862067836,57.0001401,145.55,145.43,26.0]
[1750862067837,10.84021239,145.5,145.43,26.0]
[1750862068000,6.87248109,145.51,145.44,6.87568756]
[1750862068198,26.0,145.53,145.46,10.84021239]
[1750862068532,25.52166777,145.52,145.46,10.84021239]
[1750862068723,10.84021239,145.5,145.46,10.84021239]
[1750862068922,18.64964886,145.51,145.41,7.6497]
[1750862069222,18.64964886,145.51,145.43,10.84021239]
[1750862069612,10.84021239,145.47,145.42,6.8766332]
[1750862069812,18.64964886,145.51,145.43,10.84021239]
[1750862069996,10.84021239,145.47,145.41,50.84235634]
[1750862070200,10.84021239,145.46,145.42,6.8766332]
[1750862070538,10.84021239,145.43,145.41,7.6497]
[1750862070702,10.84021239,145.42,145.41,7.6497]
[1750862070898,10.84021239,145.42,145.39,6.87788991]
[1750862071405,44.64964886,145.46,145.39,6.87788991]
[1750862071600,10.84021239,145.42,145.39,6.87788991]
[1750862072432,6.87549623,145.45,145.39,6.87788991]
[1750862072601,10.84021239,145.43,145.39,6.87788991]
[1750862073001,10.84021239,145.47,145.42,10.84021239]
[1750862073602,10.84021239,145.46,145.42,10.84021239]
[1750862074022,10.84021239,145.46,145.43,6.87616035]
[1750862074233,180.67337702,145.49,145.43,6.87616035]
[1750862074234,180.67350988,145.49,145.43,6.87616035]
[1750862074437,10.84021239,145.47,145.43,6.87616035]
[1750862074925,10.84021239,145.47,145.43,17.71637274]
[1750862075102,10.84021239,145.48,145.44,10.84021239]
[1750862075306,173.8,145.49,145.43,17.71637274]
[1750862075508,10.84021239,145.47,145.43,17.71637274]
[1750862076140,10.84021239,145.46,145.42,10.84021239]
[1750862076424,10.84021239,145.46,145.41,24.0696972]
[1750862076636,10.84021239,145.46,145.42,10.84021239]
[1750862076932,10.84021239,145.47,145.43,10.84021239]
[1750862077638,10.84021239,145.48,145.44,17.71589995]
[1750862077821,26.0,145.51,145.46,10.84021239]
[1750862078011,10.84021239,145.5,145.46,10.84021239]
[1750862078205,10.84021239,145.49,145.45,17.17361239]
[1750862079124,10.84021239,145.47,145.45,6.3334]
[1750862079540,10.84021239,145.48,145.45,6.3334]
[1750862079839,10.84021239,145.48,145.45,13.20838125]
[1750862081322,10.84021239,145.5,145.46,10.84021239]
[1750862082024,36.84021239,145.51,145.47,10.84021239]
[1750862082224,10.84021239,145.49,145.45,24.04859364]
[1750862082435,26.0,145.51,145.45,13.20838125]
[1750862082648,26.0,145.51,145.45,24.04859364]
[1750862082832,10.84021239,145.49,145.45,24.04859364]
[1750862083330,10.84021239,145.5,145.46,10.84021239]
[1750862083514,10.84021239,145.5,145.45,24.04859364]
[1750862083718,10.84021239,145.46,145.42,6.87628486]
[1750862083945,10.84021239,145.43,145.38,6.87852524]
[1750862084243,10.84021239,145.4,145.38,6.87852524]
[1750862084424,166.44964886,145.46,145.38,6.87852524]
[1750862084624,10.84021239,145.42,145.38,6.87852524]
[1750862085143,10.84021239,145.41,145.38,6.87852524]
[1750862085345,10.84021239,145.43,145.39,10.84021239]
[1750862085514,10.84021239,145.44,145.4,10.84021239]
[1750862087734,10.84021239,145.44,145.41,6.87710611]
[1750862087920,10.84021239,145.44,145.4,6.87741063]
[1750862088120,10.84021239,145.43,145.4,6.87741063]
[1750862089941,147.8,145.46,145.38,6.87852524]
[1750862089942,10.84021239,145.41,145.38,6.87852524]
[1750862090126,10.84021239,145.39,145.37,13.00459108]
[1750862090329,10.84021239,145.4,145.37,13.00459108]
[1750862091040,18.64964886,145.43,145.37,23.84480347]
[1750862091247,10.84021239,145.42,145.38,10.84021239]
[1750862091415,162.75504958,145.46,145.37,30.20208712]
[1750862091619,10.84021239,145.45,145.4,10.84021239]
[1750862092039,10.84021239,145.45,145.41,10.84021239]
[1750862092847,10.84021239,145.44,145.4,10.84021239]
[1750862093051,10.84021239,145.44,145.41,6.87710611]
[1750862093420,166.72021239,145.46,145.41,17.7173185]
[1750862093627,158.64021239,145.46,145.41,17.7173185]
[1750862093840,10.84021239,145.46,145.41,34.91008378]
[1750862094034,10.84021239,145.46,145.42,10.84021239]
[1750862094240,10.84021239,145.48,145.41,24.06987139]
[1750862094453,10.84021239,145.48,145.44,10.84021239]
[1750862094672,10.84021239,145.47,145.43,10.84021239]
[1750862094950,10.84021239,145.47,145.42,12.44881239]
[1750862095468,10.84021239,145.47,145.43,6.87616035]
[1750862096739,10.84021239,145.47,145.43,17.71637274]
[1750862097052,147.8,145.5,145.46,10.84021239]
[1750862097425,8.08,145.52,145.48,10.84021239]
[1750862097645,10.84021239,145.5,145.47,6.8742696]
[1750862098126,10.84021239,145.51,145.47,17.71448199]
[1750862098324,10.84021239,145.51,145.47,6.8742696]
[1750862098549,10.84021239,145.48,145.45,6.87521485]
[1750862098941,10.84021239,145.47,145.45,6.87521485]
[1750862099255,10.84021239,145.46,145.42,1.6086]
[1750862099548,10.84021239,145.46,145.43,6.87583093]
[1750862099753,10.84021239,145.47,145.43,6.87583093]
[1750862099960,10.84021239,145.46,145.43,6.87583093]
[1750862100130,10.84021239,145.45,145.42,8.48507401]
[1750862100329,10.84021239,145.46,145.42,19.3252864]
[1750862100533,158.64021239,145.49,145.42,25.67665701]
[1750862100737,147.8,145.49,145.46,10.84021239]
[1750862100947,147.8,145.49,145.42,25.67665701]
[1750862100948,10.84021239,145.51,145.47,10.84021239]
[1750862101558,10.84021239,145.51,145.46,17.71495458]
[1750862102353,14.95195259,145.52,145.46,17.71495458]
[1750862102669,10.84021239,145.51,145.46,17.71495458]
[1750862102866,10.84021239,145.51,145.47,10.84021239]
[1750862103071,158.64021239,145.53,145.48,10.84021239]
[1750862103257,147.8,145.53,145.49,10.84021239]
[1750862103460,36.84021239,145.54,145.5,17.71306462]
[1750862103771,10.84021239,145.53,145.49,19.24165617]
[1750862103957,26.0,145.54,145.49,19.24165617]
[1750862104148,26.0,145.54,145.49,8.40144378]
[1750862104348,18.64964886,145.56,145.51,10.84021239]
[1750862104663,10.84021239,145.56,145.51,10.84021239]
[1750862104854,10.84021239,145.56,145.52,10.84021239]
[1750862105062,10.84021239,145.57,145.53,10.84021239]
[1750862105258,8.08,145.58,145.49,25.58475534]
[1750862105559,10.84021239,145.57,145.53,6.87125763]
[1750862105774,18.64964886,145.61,145.54,10.84021239]
[1750862106066,10.84021239,145.62,145.55,1.6042]
[1750862106241,13.32969411,145.61,145.57,10.84021239]
[1750862106449,32.86624553,145.64,145.57,10.84021239]
[1750862106788,10.84021239,145.64,145.6,10.84021239]
[1750862107074,10.84021239,145.66,145.62,10.84021239]
[1750862107243,14.94451847,145.68,145.59,10.84021239]
[1750862107244,26.0,145.67,145.59,10.84021239]
[1750862107447,10.84021239,145.62,145.58,17.70887042]
[1750862107675,10.84021239,145.6,145.56,17.71023162]
[1750862107846,18.64964886,145.63,145.57,10.84021239]
[1750862108052,10.84021239,145.62,145.58,10.84021239]
[1750862108265,6.86624553,145.64,145.58,10.84021239]
[1750862108653,10.84021239,145.63,145.58,10.84021239]
[1750862108854,36.84021239,145.65,145.61,10.84021239]
[1750862109057,41.8389,145.71,145.62,10.84021239]
[1750862109270,41.8389,145.71,145.58,26.0]
[1750862109271,10.84021239,145.66,145.59,6.6069]
[1750862109476,10.84021239,145.67,145.63,17.70692941]
[1750862109654,147.8,145.71,145.63,8.44011702]
[1750862109978,6.19186665,145.77,145.67,10.84021239]
[1750862109979,10.84021239,145.72,145.67,10.84021239]
[1750862110164,6.86153423,145.74,145.68,10.84021239]
[1750862110363,10.84021239,145.73,145.67,6.5205]
[1750862110569,10.84021239,145.72,145.67,6.5205]
[1750862110768,10.84021239,145.72,145.68,10.84021239]
[1750862110976,10.84021239,145.73,145.69,10.84021239]